bitfinex/quotes_BTCUSD_20230115
["timestamp","ask_amount","ask_price","bid_price","bid_amount"]
[1673825993497,0.007,20874.0,20873.0,0.078]
[1673825993746,0.35716757,20876.0,20873.0,0.078]
[1673825994010,0.35716757,20876.0,20873.0,0.15550725]
[1673825994273,0.35716757,20876.0,20872.0,1.42004775]
[1673825994516,0.54789352,20876.0,20872.0,1.01565128]
[1673825994775,0.14286443,20875.0,20872.0,1.01565128]
[1673825995025,0.14286443,20875.0,20873.0,0.02]
[1673825995534,0.14286443,20875.0,20872.0,1.01565128]
[1673825995783,0.14286443,20875.0,20872.0,1.03565128]
[1673825996044,0.35716757,20876.0,20872.0,1.01565128]
[1673825996291,0.007,20875.0,20872.0,1.09315853]
[1673825996592,0.14286443,20876.0,20872.0,1.01565128]
[1673825996784,0.007,20875.0,20872.0,1.11315853]
[1673825997029,0.007,20875.0,20872.0,1.03565128]
[1673825997523,0.14286443,20876.0,20872.0,1.01565128]
[1673825997777,0.14986443,20876.0,20872.0,1.11315853]
[1673825998037,0.15136443,20875.0,20872.0,0.45854128]
[1673825998285,0.34909038,20875.0,20872.0,0.47854128]
[1673825998528,0.15136443,20875.0,20872.0,0.45854128]
[1673825998772,0.15136443,20875.0,20872.0,0.47854128]
[1673825999025,0.15136443,20875.0,20872.0,0.45854128]
[1673825999280,0.18636443,20875.0,20872.0,0.46054128]
[1673825999540,0.321304,20874.0,20872.0,0.45854128]
[1673825999798,0.36566757,20875.0,20872.0,0.45854128]
[1673826000057,0.14286443,20874.0,20872.0,0.45854128]
[1673826000382,0.46566757,20875.0,20872.0,0.45854128]
[1673826000587,1.01386926,20875.0,20872.0,0.46054128]
[1673826000836,0.91386926,20875.0,20872.0,0.46054128]
[1673826001340,0.55670169,20875.0,20872.0,0.46054128]
[1673826001874,0.55670169,20875.0,20872.0,0.46011928]
[1673826002653,0.55670169,20875.0,20872.0,0.002]
[1673826002654,0.69956612,20875.0,20872.0,0.002]
[1673826002911,0.321304,20874.0,20872.0,0.002]
[1673826003180,0.69956612,20875.0,20872.0,0.002]
[1673826003181,0.215534,20873.0,20872.0,0.002]
[1673826003434,1.39291126,20875.0,20872.0,0.002]
[1673826003683,1.17860812,20875.0,20872.0,0.002]
[1673826003971,1.10760812,20875.0,20870.0,0.479155]
[1673826004272,0.071,20874.0,20872.0,0.002]
[1673826004544,0.071,20874.0,20870.0,0.55666225]
[1673826004797,0.19072595,20874.0,20870.0,0.479155]
[1673826005866,0.005,20874.0,20870.0,0.499155]
[1673826006364,0.22205931,20874.0,20870.0,0.499155]
[1673826006615,0.005,20874.0,20871.0,0.50836523]
[1673826006884,0.005,20874.0,20871.0,0.58587248]
[1673826007146,0.005,20874.0,20871.0,0.50836523]
[1673826007380,0.005,20874.0,20871.0,0.98749623]
[1673826007638,0.48570169,20875.0,20871.0,0.98749623]
[1673826007896,0.035,20874.0,20871.0,1.06700348]
[1673826008204,0.035,20874.0,20871.0,0.98949623]
[1673826008402,0.035,20874.0,20871.0,0.51036523]
[1673826008650,0.48570169,20875.0,20871.0,0.50836523]
[1673826008906,0.52070169,20875.0,20871.0,0.51036523]
[1673826009156,0.48570169,20875.0,20871.0,0.50836523]
[1673826009421,0.035,20874.0,20871.0,0.51036523]
[1673826010175,0.48570169,20875.0,20871.0,0.50836523]
[1673826010425,0.49270169,20875.0,20871.0,0.52836523]
[1673826010711,0.48570169,20875.0,20871.0,0.58587248]
[1673826010955,0.007,20874.0,20871.0,0.60587248]
[1673826011200,0.48570169,20875.0,20871.0,0.50836523]
[1673826011455,0.49270169,20875.0,20871.0,0.52836523]
[1673826011716,0.49270169,20875.0,20871.0,0.60587248]
[1673826012022,0.67669145,20875.0,20871.0,0.52836523]
[1673826012241,0.8674174,20875.0,20871.0,0.52836523]
[1673826012476,0.67669145,20875.0,20871.0,0.52836523]
[1673826013526,0.67669145,20875.0,20871.0,0.60587248]
[1673826013767,0.67669145,20875.0,20871.0,0.52836523]
[1673826015027,0.8674174,20875.0,20871.0,0.50836523]
[1673826015283,0.66969145,20875.0,20871.0,0.50836523]
[1673826015535,0.67469145,20875.0,20871.0,0.52836523]
[1673826017087,0.8654174,20875.0,20871.0,0.52836523]
[1673826018077,0.67469145,20875.0,20871.0,0.52836523]
[1673826018335,0.81755588,20875.0,20871.0,0.52836523]
[1673826018628,0.81755588,20875.0,20871.0,0.60587248]
[1673826018862,0.49070169,20875.0,20871.0,0.60587248]
[1673826019894,0.49070169,20875.0,20874.0,0.0773]
[1673826019895,0.005,20875.0,20874.0,0.0773]
[1673826020144,0.005,20875.0,20874.0,0.15480725]
[1673826020395,0.005,20875.0,20874.0,0.556364]
[1673826020982,0.00813128,20878.0,20874.0,0.556364]
[1673826021171,0.071,20875.0,20874.0,0.636364]
[1673826021424,0.00813128,20878.0,20875.0,0.1]
[1673826021684,0.00813128,20878.0,20877.0,0.156]
[1673826021931,0.00813128,20878.0,20877.0,0.478996]
[1673826022188,0.19885723,20878.0,20875.0,0.06904462]
[1673826022456,0.078,20877.0,20875.0,0.06904462]
[1673826023223,0.48533297,20878.0,20875.0,0.16104462]
[1673826023224,0.58533297,20878.0,20875.0,0.16104462]
[1673826023513,0.58533297,20878.0,20875.0,0.06904462]
[1673826023514,0.0085,20877.0,20875.0,0.06904462]
[1673826024273,0.0085,20877.0,20875.0,0.07304462]
[1673826024522,0.0085,20877.0,20875.0,0.06904462]
[1673826025290,0.0085,20877.0,20875.0,0.07004462]
[1673826026590,0.87650569,20876.0,20875.0,0.07004462]
[1673826026851,1.36402369,20876.0,20875.0,0.07004462]
[1673826027102,1.58488812,20876.0,20875.0,0.07004462]
[1673826027456,1.94318663,20876.0,20875.0,0.06904462]
[1673826027608,2.09855947,20876.0,20875.0,0.06904462]
[1673826027863,1.94318663,20876.0,20875.0,0.07604462]
[1673826028116,1.94318663,20876.0,20875.0,0.06904462]
[1673826028367,1.94318663,20876.0,20875.0,0.07704462]
[1673826028613,1.72059253,20876.0,20875.0,0.07704462]
[1673826028861,1.57832683,20876.0,20875.0,0.07704462]
[1673826029106,1.72060874,20876.0,20875.0,0.07704462]
[1673826029607,1.72060874,20876.0,20875.0,0.06904462]
[1673826029856,1.72060874,20876.0,20875.0,0.07704462]
[1673826030140,1.72060874,20876.0,20875.0,0.06904462]
[1673826030387,1.72060874,20876.0,20875.0,0.07704462]
[1673826030639,1.5063056,20876.0,20875.0,0.07704462]
[1673826030895,1.72060874,20876.0,20875.0,0.07704462]
[1673826031662,1.5063056,20876.0,20875.0,0.07704462]
[1673826033188,0.80700569,20876.0,20875.0,0.07704462]
[1673826034191,0.80700569,20876.0,20875.0,0.06904462]
[1673826034441,0.70123569,20876.0,20875.0,0.07604462]
[1673826034688,0.80700569,20876.0,20875.0,0.07604462]
[1673826035000,0.48570169,20876.0,20875.0,0.07604462]
[1673826035952,0.0085,20876.0,20875.0,0.07604462]
[1673826036252,0.15041319,20878.0,20875.0,0.07604462]
[1673826036253,0.00813128,20878.0,20875.0,1.20062909]
[1673826036495,0.00813128,20878.0,20875.0,1.27813634]
[1673826036748,0.00813128,20878.0,20875.0,1.68251498]
[1673826037259,0.00813128,20878.0,20877.0,0.078]
[1673826037521,0.00813128,20878.0,20877.0,0.67333483]
[1673826037823,0.00813128,20878.0,20877.0,3.51484304]
[1673826038058,0.00813128,20878.0,20877.0,4.25243181]
[1673826038311,0.00813128,20878.0,20877.0,2.73720774]
[1673826038872,0.00813128,20878.0,20877.0,2.82920774]
[1673826039149,0.19885723,20878.0,20877.0,2.14050774]
[1673826039409,0.00813128,20878.0,20877.0,0.648596]
[1673826040245,0.00813128,20878.0,20877.0,0.1696]
[1673826041038,0.00813128,20878.0,20877.0,0.2706]
[1673826041294,0.00813128,20878.0,20877.0,0.556596]
[1673826041580,0.00813128,20878.0,20877.0,0.649596]
[1673826042106,0.00813128,20878.0,20877.0,0.949596]
[1673826042936,0.00813128,20878.0,20877.0,0.649596]
[1673826043991,0.00813128,20878.0,20877.0,0.0776]
[1673826044269,0.0080617,20878.0,20876.0,0.99284284]
[1673826044554,0.0080617,20878.0,20876.0,1.47185784]
[1673826044809,0.0080617,20878.0,20877.0,0.94677815]
[1673826045061,0.0080617,20878.0,20877.0,1.43277415]
[1673826045841,0.0080617,20878.0,20877.0,1.42477415]
[1673826046080,0.0080617,20878.0,20877.0,1.33277415]
[1673826046329,0.0080617,20878.0,20877.0,1.42477415]
[1673826047356,0.0080617,20878.0,20877.0,0.726596]
[1673826051756,0.0080617,20878.0,20877.0,1.026596]
[1673826052017,0.0080617,20878.0,20877.0,0.948696]
[1673826052283,0.0080617,20878.0,20877.0,0.648696]
[1673826052810,0.0080617,20878.0,20877.0,0.948696]
[1673826053366,0.0080617,20878.0,20877.0,0.648696]
[1673826056760,0.0080617,20878.0,20877.0,0.570996]
[1673826062091,0.19878765,20878.0,20877.0,0.092]
[1673826062342,0.0080617,20878.0,20877.0,0.092]
[1673826062878,0.0080617,20878.0,20876.0,0.91556184]
[1673826063134,0.0080617,20878.0,20877.0,0.077]
[1673826064943,0.0080617,20878.0,20876.0,0.43654584]
[1673826065211,0.0080617,20878.0,20877.0,0.005]
[1673826065710,0.0080617,20878.0,20876.0,0.43654584]
[1673826065960,0.0080617,20878.0,20876.0,0.43733561]
[1673826066211,0.0080617,20878.0,20876.0,0.51354584]
[1673826067265,0.0080617,20878.0,20876.0,0.43654584]
[1673826067553,0.0080617,20878.0,20877.0,0.005]
[1673826068049,0.0080617,20878.0,20876.0,0.51354584]
[1673826068302,0.0080617,20878.0,20876.0,0.43654584]
[1673826068596,0.00011873,20876.0,20873.0,0.479085]
[1673826068848,0.26864468,20876.0,20873.0,0.479085]
[1673826069625,0.07791873,20876.0,20873.0,0.479085]
[1673826070168,0.00011873,20876.0,20874.0,0.45306387]
[1673826070695,0.00111873,20876.0,20874.0,0.93211387]
[1673826070965,0.00011873,20876.0,20875.0,0.1]
[1673826071224,0.00111873,20876.0,20875.0,0.479041]
[1673826071505,0.00011873,20876.0,20875.0,0.479041]
[1673826071797,0.00111873,20876.0,20875.0,0.479041]
[1673826072315,0.00211873,20876.0,20875.0,0.564041]
[1673826072570,0.00211873,20876.0,20875.0,0.085]
[1673826073339,0.00211873,20876.0,20875.0,0.08578981]
[1673826073601,0.00211873,20876.0,20875.0,0.085]
[1673826075437,0.06353115,20876.0,20875.0,0.085]
[1673826077496,0.00201115,20876.0,20875.0,0.085]
[1673826079048,0.06353115,20876.0,20875.0,0.085]
[1673826079302,0.38483515,20876.0,20875.0,0.085]
[1673826079836,0.86203684,20876.0,20875.0,0.085]
[1673826080104,0.75626684,20876.0,20875.0,0.085]
[1673826080361,0.53873284,20876.0,20874.0,0.45306387]
[1673826080629,0.47821284,20876.0,20874.0,0.45306387]
[1673826080895,0.321304,20875.0,20874.0,0.45306387]
[1673826081142,0.49121284,20876.0,20874.0,0.45306387]
[1673826081405,0.47721284,20876.0,20874.0,0.45306387]
[1673826081666,0.47721284,20876.0,20874.0,0.46206387]
[1673826081973,0.399304,20875.0,20871.0,0.479132]
[1673826082201,0.399304,20875.0,20874.0,0.009]
[1673826082202,0.26872595,20875.0,20874.0,0.009]
[1673826082450,0.078,20875.0,20874.0,0.009]
[1673826082701,0.399304,20875.0,20874.0,0.009]
[1673826083250,0.399304,20875.0,20870.0,0.794342]
[1673826083473,0.078,20875.0,20874.0,0.009]
[1673826083730,0.078,20875.0,20870.0,0.479142]
[1673826083993,0.092,20875.0,20874.0,0.006]
[1673826084263,0.092,20875.0,20870.0,0.704032]
[1673826084264,0.078,20875.0,20870.0,0.479142]
[1673826084520,0.079,20875.0,20870.0,0.558142]
[1673826085289,0.079,20875.0,20870.0,0.15650725]
[1673826085290,0.55460169,20874.0,20870.0,0.15650725]
[1673826085545,0.74532764,20874.0,20870.0,0.079]
[1673826086328,0.55460169,20874.0,20870.0,0.079]
[1673826086591,0.079,20875.0,20871.0,0.56045231]
[1673826086849,0.51714776,20876.0,20871.0,1.03957231]
[1673826087116,0.001,20874.0,20872.0,0.07750725]
[1673826087383,0.001,20874.0,20871.0,1.51868431]
[1673826087627,0.001,20874.0,20871.0,1.44117706]
[1673826087882,0.99434945,20876.0,20871.0,1.44117706]
[1673826088145,0.99434945,20876.0,20871.0,1.51868431]
[1673826088437,1.1860754,20876.0,20871.0,1.59768431]
[1673826088926,0.001,20874.0,20871.0,1.67668431]
[1673826089176,0.001,20874.0,20871.0,1.59917706]
[1673826089680,1.1850754,20876.0,20871.0,1.44117706]
[1673826089936,1.1850754,20876.0,20871.0,1.51868431]
[1673826090683,0.001,20874.0,20871.0,1.59768431]
[1673826090947,1.1850754,20876.0,20871.0,1.44117706]
[1673826091211,1.1860754,20876.0,20871.0,1.59668431]
[1673826091462,1.1850754,20876.0,20871.0,1.51868431]
[1673826091725,0.001,20874.0,20871.0,1.59668431]
[1673826091975,0.001,20874.0,20871.0,1.51917706]
[1673826092527,1.1850754,20876.0,20871.0,1.44117706]
[1673826092766,1.1860754,20876.0,20871.0,1.59668431]
[1673826093026,1.1850754,20876.0,20871.0,1.51868431]
[1673826093288,0.001,20874.0,20871.0,1.59668431]
[1673826093614,1.1850754,20876.0,20871.0,1.44117706]
[1673826093788,1.1860754,20876.0,20871.0,1.59668431]
[1673826094586,1.1860754,20876.0,20871.0,1.73992541]
[1673826095871,0.00101115,20876.0,20872.0,0.07750725]
[1673826096131,0.00101115,20876.0,20873.0,0.479083]
[1673826096663,0.15034361,20878.0,20876.0,0.0001064]
[1673826096909,0.6275453,20878.0,20876.0,0.07761365]
[1673826097161,0.6275453,20878.0,20876.0,0.0001064]
[1673826097162,0.84184844,20878.0,20876.0,0.0001064]
[1673826097382,0.321304,20877.0,20876.0,0.0001064]
[1673826097692,0.6275453,20878.0,20876.0,0.0001064]
[1673826097944,0.1,20877.0,20876.0,0.0001064]
[1673826098199,0.321304,20877.0,20876.0,0.0001064]
[1673826098689,0.46358591,20877.0,20876.0,0.0091064]
[1673826098995,0.46358591,20877.0,20876.0,0.0001064]
[1673826099253,0.46358591,20877.0,20876.0,0.0091064]
[1673826099505,0.14228191,20877.0,20876.0,0.0001064]
[1673826099765,0.14228191,20877.0,20876.0,0.0091064]
[1673826100024,0.15034361,20878.0,20876.0,0.0706264]
[1673826100307,0.15034361,20878.0,20876.0,0.5496444]
[1673826100308,0.0080617,20878.0,20876.0,0.5496444]
[1673826101077,0.0080617,20878.0,20876.0,0.5406444]
[1673826101360,0.0080617,20878.0,20876.0,0.5496444]
[1673826101603,0.0080617,20878.0,20876.0,0.0091064]
[1673826103694,0.15034361,20878.0,20876.0,0.0091064]
[1673826107785,0.34106956,20878.0,20876.0,0.0091064]
[1673826108063,0.22028191,20877.0,20876.0,0.0091064]
[1673826108845,0.078,20877.0,20876.0,0.0001064]
[1673826109153,0.22028191,20877.0,20876.0,0.0001064]
[1673826109637,0.23428191,20877.0,20876.0,0.0041064]
[1673826111768,0.078,20877.0,20876.0,0.0041064]
[1673826113529,0.078,20877.0,20876.0,0.0001064]
[1673826113785,0.079,20877.0,20876.0,0.0071064]
[1673826114543,0.079,20877.0,20875.0,0.52659828]
[1673826115557,0.078,20877.0,20875.0,0.52659828]
[1673826115812,0.086,20877.0,20875.0,0.52959828]
[1673826119999,0.086,20877.0,20875.0,0.52997828]
[1673826120854,0.321304,20876.0,20875.0,0.52997828]
[1673826121316,0.3001142,20877.0,20875.0,0.52997828]
[1673826121567,0.3001142,20877.0,20875.0,0.52981428]
[1673826122109,0.321304,20876.0,20875.0,0.52981428]
[1673826122582,0.3001142,20877.0,20875.0,0.52981428]
[1673826122839,0.321304,20876.0,20875.0,0.52981428]
[1673826123111,2.3206642,20876.0,20875.0,0.00338]
[1673826123376,2.44868516,20876.0,20875.0,0.00338]
[1673826123647,2.73413299,20876.0,20875.0,0.00338]
[1673826124133,2.72613299,20876.0,20875.0,0.00038]
[1673826124390,2.78613299,20876.0,20875.0,0.00338]
[1673826124727,2.72613299,20876.0,20875.0,0.00038]
[1673826124888,2.11054504,20876.0,20875.0,0.00338]
[1673826125420,2.32468845,20876.0,20875.0,0.00338]
[1673826126215,2.26468845,20876.0,20875.0,0.00038]
[1673826126433,2.11054504,20876.0,20875.0,0.00338]
[1673826126680,2.05054504,20876.0,20875.0,0.00038]
[1673826126940,2.32472999,20876.0,20875.0,0.00338]
[1673826127191,2.32474198,20876.0,20875.0,0.00338]
[1673826127447,2.32474198,20876.0,20875.0,0.08088725]
[1673826127448,0.82939863,20876.0,20875.0,0.08088725]
[1673826127708,0.06,20876.0,20875.0,0.05927]
[1673826130007,0.06,20876.0,20875.0,0.00338]
[1673826130255,0.35701709,20878.0,20875.0,0.05627]
[1673826130521,0.005,20876.0,20875.0,0.09327]
[1673826131069,0.005,20876.0,20875.0,0.572311]
[1673826132327,0.005,20876.0,20875.0,0.03738]
[1673826132569,0.14782015,20876.0,20875.0,0.03738]
[1673826133331,0.14282015,20876.0,20875.0,0.00038]
[1673826133600,0.14682015,20876.0,20875.0,0.03638]
[1673826133869,0.43901709,20876.0,20875.0,0.03638]
[1673826134854,0.43901709,20876.0,20875.0,0.036]
[1673826135372,0.22482015,20876.0,20875.0,0.036]
[1673826135626,0.22514015,20876.0,20875.0,0.036]
[1673826136220,0.00432,20876.0,20875.0,0.036]
[1673826138239,0.53741169,20876.0,20875.0,0.036]
[1673826138506,0.75823184,20876.0,20875.0,0.036]
[1673826138767,0.61541169,20876.0,20875.0,0.036]
[1673826139023,0.53741169,20876.0,20875.0,0.036]
[1673826139249,0.00432,20876.0,20875.0,0.036]
[1673826139501,0.00432,20876.0,20875.0,0.515041]
[1673826139755,0.00432,20876.0,20875.0,0.6582821]
[1673826140008,0.00432,20876.0,20875.0,0.515041]
[1673826141312,0.00432,20876.0,20875.0,0.6582821]
[1673826142307,0.00432,20876.0,20875.0,0.515041]
[1673826142566,0.00432,20876.0,20875.0,0.6582821]
[1673826144113,0.00432,20876.0,20875.0,1.55602286]
[1673826144367,0.00420551,20876.0,20875.0,2.51398018]
[1673826144620,0.00420551,20876.0,20875.0,2.65670995]
[1673826145395,0.00420551,20876.0,20875.0,2.37073908]
[1673826145908,0.00420551,20876.0,20875.0,2.2141501]
[1673826146160,0.00420551,20876.0,20875.0,0.65845202]
[1673826146411,0.00420551,20876.0,20875.0,0.515041]
[1673826146903,0.00420551,20876.0,20875.0,0.65845202]
[1673826147166,0.00420551,20876.0,20875.0,1.25610942]
[1673826147416,0.00420551,20876.0,20875.0,2.62189831]
[1673826147690,0.00420551,20876.0,20875.0,2.9793619]
[1673826147937,0.3644164,20882.0,20876.0,0.62881747]
[1673826148188,0.00739931,20882.0,20878.0,0.14336238]
[1673826148448,0.00739931,20882.0,20877.0,2.80116611]
[1673826148449,0.00739931,20882.0,20879.0,1.51551627]
[1673826148693,0.00739931,20882.0,20879.0,1.5516792]
[1673826149228,0.00739931,20882.0,20879.0,1.47417195]
[1673826149460,0.00839931,20882.0,20879.0,1.55317195]
[1673826150694,0.00890931,20882.0,20879.0,1.55317195]
[1673826151217,0.00890931,20882.0,20881.0,0.0773]
[1673826151525,0.00890931,20882.0,20881.0,0.556204]
[1673826152463,0.00790931,20882.0,20881.0,0.556204]
[1673826152710,0.00890931,20882.0,20881.0,0.640204]
[1673826153468,0.00790931,20882.0,20881.0,0.478904]
[1673826153735,0.00890931,20882.0,20881.0,0.561904]
[1673826153978,0.00790931,20882.0,20881.0,0.478904]
[1673826154257,0.00890931,20882.0,20881.0,0.562904]
[1673826154473,0.00790931,20882.0,20881.0,0.478904]
[1673826155488,0.00890931,20882.0,20881.0,0.558904]
[1673826156040,0.00790931,20882.0,20881.0,0.478904]
[1673826156299,0.00890931,20882.0,20881.0,0.558904]
[1673826156591,0.00890931,20882.0,20881.0,0.478904]
[1673826156854,0.00981931,20882.0,20881.0,0.558904]
[1673826159205,0.00981931,20882.0,20881.0,0.08]
[1673826161257,0.06570931,20882.0,20881.0,0.08]
[1673826161522,0.00981931,20882.0,20881.0,0.08]
[1673826162295,0.06570931,20882.0,20881.0,0.08]
[1673826162547,0.939515,20882.0,20879.0,0.43828195]
[1673826162790,0.293534,20881.0,20879.0,0.43828195]
[1673826163099,0.078,20881.0,20879.0,0.43828195]
[1673826163830,0.097,20881.0,20879.0,0.44128195]
[1673826167666,0.57420169,20881.0,20879.0,0.44128195]
[1673826171118,0.019,20881.0,20879.0,0.9977352]
[1673826171379,0.019,20881.0,20880.0,0.15550725]
[1673826171657,0.019,20881.0,20880.0,2.53693456]
[1673826171908,0.019,20881.0,20880.0,1.57921638]
[1673826172173,0.00781931,20882.0,20880.0,2.53690809]
[1673826172438,0.00781931,20882.0,20881.0,0.178]
[1673826172688,0.00781931,20882.0,20881.0,0.478]
[1673826173434,0.00827053,20885.0,20883.0,0.00955178]
[1673826173733,0.00827053,20885.0,20884.0,1.25624017]
[1673826173964,0.00827053,20885.0,20884.0,3.30943791]
[1673826174212,0.00827053,20885.0,20884.0,4.5451283]
[1673826174471,0.00827053,20885.0,20884.0,3.9264784]
[1673826175256,0.00812053,20886.0,20885.0,0.59613338]
[1673826175505,0.01027597,20890.0,20886.0,0.1]
[1673826175757,0.01027597,20890.0,20886.0,1.88740495]
[1673826176088,0.01027597,20890.0,20886.0,1.48740495]
[1673826176537,0.01027597,20890.0,20886.0,1.78740495]
[1673826176787,0.01027597,20890.0,20886.0,1.87940495]
[1673826177788,0.01027597,20890.0,20886.0,1.78740495]
[1673826178044,0.01027597,20890.0,20886.0,1.87940495]
[1673826179551,0.01027597,20890.0,20886.0,1.78740495]
[1673826180069,0.01027597,20890.0,20886.0,1.87840495]
[1673826180573,0.01027597,20890.0,20886.0,1.96940495]
[1673826184465,0.01027597,20890.0,20886.0,2.92175884]
[1673826184725,0.01027597,20890.0,20886.0,1.96440495]
[1673826185255,0.01027597,20890.0,20886.0,1.78240495]
[1673826185491,0.01027597,20890.0,20886.0,1.87340495]
[1673826185995,0.19953985,20887.0,20886.0,1.126378]
[1673826186249,0.19953985,20887.0,20886.0,1.048578]
[1673826186250,0.0088139,20887.0,20886.0,1.048578]
[1673826187785,0.0088139,20887.0,20886.0,0.957578]
[1673826188315,0.0098139,20887.0,20886.0,0.084]
[1673826188578,0.0098139,20887.0,20886.0,1.041578]
[1673826192705,0.0098139,20887.0,20886.0,1.341578]
[1673826193202,0.0098139,20887.0,20886.0,1.71219414]
[1673826193467,0.0098139,20887.0,20886.0,2.82482484]
[1673826193766,0.01027597,20890.0,20887.0,0.57890114]
[1673826194040,0.01027597,20890.0,20888.0,0.957486]
[1673826194280,0.01027597,20890.0,20888.0,0.478743]
[1673826195365,0.01127597,20890.0,20888.0,0.478743]
[1673826195592,0.01027597,20890.0,20888.0,0.478743]
[1673826195856,0.01027597,20890.0,20889.0,0.52644438]
[1673826195857,0.01127597,20890.0,20889.0,0.52644438]
[1673826196364,0.01027597,20890.0,20889.0,0.52644438]
[1673826196911,0.01127597,20890.0,20889.0,0.52723366]
[1673826197666,0.01027597,20890.0,20889.0,0.52723366]
[1673826197978,0.01127597,20890.0,20889.0,0.61323366]
[1673826198197,0.01127597,20890.0,20889.0,0.52723366]
[1673826198454,0.01227597,20890.0,20889.0,0.61223366]
[1673826200282,0.01227597,20890.0,20889.0,1.09095366]
[1673826202129,0.01227597,20890.0,20889.0,0.61144438]
[1673826202387,0.01227597,20890.0,20889.0,0.61133908]
[1673826204209,0.00727597,20890.0,20889.0,0.61133908]
[1673826206040,0.00727597,20890.0,20889.0,1.09005908]
[1673826209844,0.00727597,20890.0,20889.0,0.61133908]
[1673826210098,0.06316597,20890.0,20889.0,0.61133908]
[1673826211678,0.00727597,20890.0,20889.0,0.61133908]
[1673826212762,0.15009612,20890.0,20889.0,0.61133908]
[1673826213309,0.15009612,20890.0,20889.0,0.085]
[1673826213613,0.00727597,20890.0,20889.0,0.085]
[1673826213860,0.15009612,20890.0,20889.0,0.085]
[1673826214362,0.22809612,20890.0,20889.0,0.085]
[1673826214626,0.54940012,20890.0,20889.0,0.085]
[1673826215062,1.94463559,20890.0,20889.0,0.085]
[1673826215067,2.13638945,20890.0,20889.0,0.085]
[1673826215732,2.56661053,20890.0,20889.0,0.085]
[1673826215961,2.86301053,20890.0,20889.0,0.01492956]
[1673826216480,3.29330022,20890.0,20889.0,0.01492956]
[1673826216756,3.29130022,20890.0,20887.0,0.00192014]
[1673826217024,0.79905133,20888.0,20887.0,0.00192014]
[1673826217287,2.02973837,20888.0,20887.0,0.00192014]
[1673826217760,1.94174623,20888.0,20887.0,0.00192014]
[1673826217763,1.72721595,20888.0,20887.0,0.00192014]
[1673826218027,1.7985768,20888.0,20887.0,0.00292014]
[1673826218284,3.17825279,20888.0,20887.0,0.00192014]
[1673826218542,3.81567948,20888.0,20887.0,0.00292014]
[1673826218803,4.10149243,20888.0,20887.0,0.00292014]
[1673826219118,3.34157731,20888.0,20887.0,0.00292014]
[1673826219367,3.62738773,20888.0,20887.0,0.00292014]
[1673826219619,3.34157731,20888.0,20887.0,0.00292014]
[1673826219878,2.96018676,20888.0,20887.0,0.00292014]
[1673826220383,3.17439723,20888.0,20887.0,0.00292014]
[1673826220634,2.96018676,20888.0,20887.0,0.00292014]
[1673826220894,3.64849956,20888.0,20887.0,0.00292014]
[1673826221506,3.43428893,20888.0,20887.0,0.00292014]
[1673826221676,3.13428893,20888.0,20887.0,0.00292014]
[1673826221930,3.35191754,20888.0,20887.0,0.00292014]
[1673826222452,2.57781537,20888.0,20887.0,0.00292014]
[1673826222741,2.43475271,20888.0,20887.0,0.00292014]
[1673826222989,2.4347626,20888.0,20887.0,0.00292014]
[1673826223237,2.43475454,20888.0,20887.0,0.00292014]
[1673826223759,2.43470463,20888.0,20887.0,0.00292014]
[1673826224026,2.22057602,20888.0,20887.0,0.00292014]
[1673826224566,2.43470463,20888.0,20887.0,0.00292014]
[1673826225100,2.73470463,20888.0,20887.0,0.00292014]
[1673826225377,2.90310124,20888.0,20887.0,0.00292014]
[1673826225898,2.83162727,20888.0,20887.0,0.00292014]
[1673826226432,3.04575588,20888.0,20887.0,0.00292014]
[1673826227748,2.83162727,20888.0,20887.0,0.00292014]
[1673826228057,3.04575588,20888.0,20887.0,0.02555595]
[1673826228560,2.73465863,20888.0,20887.0,0.02555595]
[1673826229601,2.59200399,20888.0,20887.0,0.02555595]
[1673826229861,4.17377839,20888.0,20887.0,0.02555595]
[1673826230119,3.98305244,20888.0,20887.0,0.02555595]
[1673826230383,3.98305244,20888.0,20880.0,0.0084201]
[1673826230660,0.078,20881.0,20880.0,0.08592735]
[1673826230936,1.54613564,20881.0,20880.0,0.0084201]
[1673826231189,0.878208,20881.0,20880.0,0.0084201]
[1673826231454,0.556872,20883.0,20880.0,0.43282974]
[1673826231707,0.078,20883.0,20880.0,0.43282974]
[1673826231958,0.084,20881.0,20880.0,0.43282974]
[1673826232483,0.078,20883.0,20880.0,0.43282974]
[1673826233036,0.078,20881.0,20880.0,0.0084201]
[1673826233342,1.24963969,20881.0,20880.0,0.0084201]
[1673826233863,1.17163969,20881.0,20880.0,0.00920972]
[1673826234133,0.084,20881.0,20880.0,0.00920972]
[1673826234387,0.682211,20884.0,20880.0,0.00920972]
[1673826234687,0.682211,20884.0,20880.0,0.08671697]
[1673826234688,0.091,20881.0,20880.0,0.08671697]
[1673826234971,0.091,20881.0,20880.0,0.00920972]
[1673826235243,1.38925836,20884.0,20880.0,0.00920972]
[1673826235504,0.084,20881.0,20880.0,0.08671697]
[1673826235751,1.38925836,20884.0,20880.0,0.0084201]
[1673826236011,1.38925836,20884.0,20880.0,0.08592735]
[1673826236286,0.321304,20883.0,20880.0,0.08592735]
[1673826236553,1.18589836,20884.0,20880.0,0.0084201]
[1673826236818,0.008,20881.0,20880.0,0.08592735]
[1673826237068,0.008,20881.0,20880.0,0.0084201]
[1673826237388,1.18589836,20884.0,20880.0,0.0084201]
[1673826237658,1.18589836,20884.0,20880.0,0.08592735]
[1673826237913,0.008,20881.0,20880.0,0.08592735]
[1673826238174,0.008,20881.0,20880.0,0.0084201]
[1673826238728,1.39296836,20884.0,20880.0,0.0084201]
[1673826239008,1.39296836,20884.0,20880.0,0.08592735]
[1673826239009,1.40096836,20884.0,20880.0,0.08592735]
[1673826239264,1.40096836,20884.0,20880.0,0.0084201]
[1673826239265,0.321304,20883.0,20880.0,0.0084201]
[1673826239523,0.215534,20882.0,20880.0,0.0084201]
[1673826239778,0.321304,20881.0,20880.0,0.0084201]
[1673826240286,0.478859,20883.0,20880.0,0.0084201]
[1673826240803,0.008,20881.0,20880.0,0.0084201]
[1673826241060,0.478859,20883.0,20880.0,0.0084201]
[1673826241369,0.008,20883.0,20881.0,0.07750725]
[1673826241569,0.478801,20886.0,20881.0,0.53395423]
[1673826241819,0.47720169,20885.0,20882.0,0.07750725]
[1673826242073,0.47720169,20885.0,20881.0,0.53395423]
[1673826242356,0.008,20883.0,20881.0,0.45644698]
[1673826242615,0.86033168,20885.0,20881.0,0.45644698]
[1673826242895,1.42314668,20885.0,20881.0,0.45644698]